bitfinex-derivatives/quotes_BTCF0:USTF0_20251103
["timestamp","ask_amount","ask_price","bid_price","bid_amount"]
[1762192268504,0.32484,107610.0,107580.0,0.97419405]
[1762192268702,0.17434038,107610.0,107600.0,1.10375675]
[1762192268895,0.15247038,107620.0,107610.0,0.1280081]
[1762192269096,0.22254978,107620.0,107610.0,1.06769815]
[1762192269296,0.26727978,107620.0,107610.0,0.97475005]
[1762192269599,0.28028978,107620.0,107610.0,0.64991005]
[1762192269799,0.28028978,107620.0,107610.0,0.74285815]
[1762192270001,0.18735038,107620.0,107610.0,0.74285815]
[1762192270202,0.15547038,107620.0,107610.0,0.74285815]
[1762192270708,0.15247038,107620.0,107610.0,0.74285815]
[1762192271006,0.27227978,107620.0,107610.0,0.74285815]
[1762192271217,0.17934038,107620.0,107610.0,0.74285815]
[1762192272922,0.13461038,107620.0,107610.0,0.74285815]
[1762192273313,0.15747038,107620.0,107610.0,0.74285815]
[1762192273613,0.13461038,107620.0,107610.0,0.74285815]
[1762192274012,0.51754826,107650.0,107640.0,0.1146122]
[1762192274212,1.01616086,107650.0,107640.0,0.1367422]
[1762192274508,1.01616086,107650.0,107640.0,0.27618005]
[1762192274707,0.65536086,107650.0,107640.0,0.36910225]
[1762192274918,0.65536086,107650.0,107640.0,0.27618005]
[1762192275114,0.66474916,107650.0,107640.0,0.27618005]
[1762192275711,0.66574916,107650.0,107640.0,0.28918005]
[1762192275914,0.79535954,107650.0,107640.0,0.24536005]
[1762192276118,1.15615954,107650.0,107640.0,0.24536005]
[1762192276315,0.05689,107630.0,107620.0,0.4977494]
[1762192276515,0.18650038,107630.0,107620.0,0.4977494]
[1762192276921,0.27943118,107630.0,107620.0,0.4977494]
[1762192277527,0.27943118,107630.0,107620.0,0.40981]
[1762192277823,0.20886167,107630.0,107620.0,0.5027495]
[1762192278021,0.30179247,107630.0,107620.0,0.04901]
[1762192278521,0.62651247,107630.0,107620.0,0.04901]
[1762192279019,0.98731247,107630.0,107620.0,0.005]
[1762192279422,0.98731247,107630.0,107620.0,0.02635]
[1762192280126,0.98731247,107630.0,107620.0,0.005]
[1762192280618,0.1498467,107600.0,107590.0,0.45414262]
[1762192280817,0.1498553,107590.0,107580.0,0.09334262]
[1762192281023,0.27946568,107590.0,107580.0,0.09334262]
[1762192281224,0.27946568,107590.0,107580.0,0.04401]
[1762192281418,0.18650038,107590.0,107580.0,0.04401]
[1762192281816,0.27946578,107590.0,107580.0,0.04401]
[1762192282418,0.37654113,107590.0,107580.0,0.04401]
[1762192282623,0.04306,107580.0,107570.0,0.87180182]
[1762192282922,0.58522559,107580.0,107570.0,0.87180182]
[1762192283117,0.58522559,107580.0,107570.0,0.54712182]
[1762192283917,0.37574,107580.0,107570.0,0.54812182]
[1762192284118,0.68619959,107580.0,107570.0,0.45514262]
[1762192284322,0.68619959,107580.0,107570.0,0.05033262]
[1762192284625,0.61552452,107580.0,107570.0,0.1379927]
[1762192284826,0.62935452,107580.0,107570.0,0.1379927]
[1762192285922,0.99015452,107580.0,107570.0,0.001]
[1762192288426,1.08312852,107580.0,107570.0,0.001]
[1762192288818,0.05745,107560.0,107550.0,0.4997165]
[1762192289029,0.69260689,107560.0,107550.0,0.40672]
[1762192289326,0.1504499,107550.0,107540.0,0.38685848]
[1762192289521,0.36793549,107550.0,107540.0,0.00306848]
[1762192290825,0.44159796,107550.0,107540.0,0.00306848]
[1762192291531,0.80239796,107550.0,107540.0,0.00306848]
[1762192291728,0.82462065,107550.0,107540.0,0.00306848]
[1762192292124,0.04399,107530.0,107520.0,0.38390231]
[1762192292426,0.58619559,107530.0,107520.0,0.38390231]
[1762192292620,0.58619559,107530.0,107520.0,0.00011231]
[1762192292826,0.94699559,107530.0,107520.0,0.00011231]
[1762192293730,0.95099559,107530.0,107520.0,0.00011231]
[1762192294730,0.59953423,107530.0,107520.0,0.04603231]
[1762192295036,0.96033423,107530.0,107520.0,0.00011231]
[1762192295433,0.96233423,107530.0,107520.0,0.00011231]
[1762192297828,0.63757423,107530.0,107520.0,0.00011231]
[1762192298037,1.05535143,107530.0,107520.0,0.00011231]
[1762192299534,0.1370245,107510.0,107500.0,0.00306962]
[1762192299728,0.96035559,107510.0,107500.0,0.00306962]
[1762192300037,0.59955559,107510.0,107500.0,0.14203282]
[1762192300634,0.59966206,107510.0,107500.0,0.14203282]
[1762192300835,0.59966206,107510.0,107500.0,0.50283282]
[1762192301035,0.27486206,107510.0,107500.0,0.50283282]
[1762192301342,0.59966206,107510.0,107500.0,0.50283282]
[1762192301840,0.351177,107510.0,107500.0,0.47990282]
[1762192302242,0.4442115,107510.0,107500.0,0.38685962]
[1762192302442,0.349177,107510.0,107500.0,0.47990282]
[1762192302647,0.675977,107510.0,107500.0,0.50283282]
[1762192302838,0.7690116,107510.0,107500.0,0.04898962]
[1762192303138,0.60166206,107510.0,107500.0,0.04898962]
[1762192303537,0.69469636,107510.0,107500.0,0.04898962]
[1762192303929,0.69469636,107510.0,107500.0,0.14203252]
[1762192304137,0.60166206,107510.0,107500.0,0.14203252]
[1762192304640,0.69469626,107510.0,107500.0,0.00306962]
[1762192304834,0.76769397,107510.0,107500.0,0.00306962]
[1762192305337,1.12849397,107510.0,107500.0,0.00306962]
[1762192305644,0.05856,107490.0,107480.0,0.4980844]
[1762192305839,0.69389709,107490.0,107480.0,0.40503]
[1762192306142,0.05856,107480.0,107470.0,0.04423]
[1762192306335,0.27604559,107480.0,107470.0,0.1372989]
[1762192306736,0.05856,107480.0,107470.0,0.4980989]
[1762192307043,0.27604559,107480.0,107470.0,0.4980989]
[1762192307845,0.28551969,107480.0,107470.0,0.4980989]
[1762192308543,0.37857989,107480.0,107470.0,0.40503]
[1762192309038,0.05856,107470.0,107460.0,0.04730077]
[1762192309244,0.60088559,107470.0,107460.0,0.04730077]
[1762192309837,0.60088559,107470.0,107460.0,0.14037837]
[1762192310034,0.60088559,107470.0,107460.0,0.50117837]
[1762192310439,0.60088559,107470.0,107460.0,0.14037837]
[1762192310440,0.6009925,107470.0,107460.0,0.14037837]
[1762192310948,0.6009925,107470.0,107460.0,0.00307077]
[1762192312142,1.04007052,107470.0,107460.0,0.00307077]
[1762192312347,0.05856,107460.0,107450.0,7.953e-05]
[1762192312536,0.63684559,107460.0,107450.0,0.01317109]
[1762192312941,0.62776568,107460.0,107450.0,0.01317109]
[1762192313641,0.62776568,107460.0,107450.0,7.953e-05]
[1762192314239,0.62776568,107460.0,107450.0,0.13739573]
[1762192314542,0.59184568,107460.0,107450.0,0.49819573]
[1762192315443,0.26696568,107460.0,107450.0,0.49819573]
[1762192315646,0.59184568,107460.0,107450.0,0.49819573]
[1762192316242,0.59184568,107460.0,107450.0,0.40510953]
[1762192316552,0.59184568,107460.0,107450.0,0.49819573]
[1762192318136,0.26696568,107460.0,107450.0,0.49819573]
[1762192318343,0.59188568,107460.0,107450.0,0.49819573]
[1762192319048,0.68496328,107460.0,107450.0,0.49819573]
[1762192319248,0.68496328,107460.0,107450.0,0.40510953]
[1762192319443,0.00310691,107470.0,107460.0,0.05727]
[1762192319650,0.07015353,107500.0,107490.0,0.1441616]
[1762192319957,0.37950736,107500.0,107490.0,0.1441616]
[1762192320150,2.09699295,107500.0,107490.0,0.4980816]
[1762192320444,2.09699295,107500.0,107490.0,0.04423]
[1762192320837,2.09699295,107500.0,107490.0,0.40503]
[1762192321040,2.09999295,107500.0,107490.0,0.40503]
[1762192321237,2.09999295,107500.0,107490.0,0.4980815]
[1762192321443,2.09999295,107500.0,107490.0,0.1372815]
[1762192321649,2.09999295,107500.0,107490.0,0.40503]
[1762192321953,2.09999295,107500.0,107490.0,0.4980815]
[1762192323249,2.09976219,107500.0,107490.0,0.4980815]
[1762192323452,2.09052559,107500.0,107490.0,0.4980815]
[1762192323746,1.76560559,107500.0,107490.0,0.4980815]
[1762192323951,1.89460409,107500.0,107490.0,0.4980815]
[1762192324145,2.11208968,107500.0,107490.0,0.4980815]
[1762192324452,1.54691409,107500.0,107490.0,0.4980815]
[1762192324643,0.28763912,107520.0,107510.0,0.1372643]
[1762192324847,0.09276049,107520.0,107510.0,0.4980643]
[1762192325145,0.02260696,107520.0,107510.0,1.0913843]
[1762192325452,0.01260439,107520.0,107510.0,1.0913843]
[1762192325649,0.02803353,107530.0,107520.0,0.1372556]
[1762192325850,0.05034353,107530.0,107520.0,0.8229356]
[1762192326050,0.003,107530.0,107520.0,1.0554556]
[1762192326244,0.02803353,107530.0,107520.0,1.0554556]
[1762192326650,0.003,107530.0,107520.0,1.0554556]
[1762192328554,0.004,107530.0,107520.0,1.0554556]
[1762192328963,0.02503353,107540.0,107530.0,0.1372469]
[1762192329252,0.05842363,107550.0,107540.0,0.1437983]
[1762192329458,0.05842363,107550.0,107540.0,1.0618783]
[1762192329655,0.38063882,107550.0,107540.0,0.41159]
[1762192329851,0.43862077,107550.0,107540.0,0.40503]
[1762192330248,0.43862077,107550.0,107540.0,0.4980383]
[1762192330452,0.29599569,107550.0,107540.0,0.4980383]
[1762192330655,0.29599569,107550.0,107540.0,0.5111483]
[1762192330955,0.29799569,107550.0,107540.0,0.5111483]
[1762192331354,0.32297723,107550.0,107540.0,0.8359083]
[1762192331756,0.29799569,107550.0,107540.0,0.8359083]
[1762192331953,0.29799569,107550.0,107540.0,0.72979]
[1762192333453,0.29799569,107550.0,107540.0,0.8227983]
[1762192333654,0.02697306,107550.0,107540.0,0.5111483]
[1762192334157,0.07209306,107550.0,107540.0,0.5111483]
[1762192335250,0.28957865,107550.0,107540.0,0.5111483]
[1762192335445,0.07209306,107550.0,107540.0,0.5111483]
[1762192335853,0.28957865,107550.0,107540.0,0.5111483]
[1762192336358,0.28957865,107550.0,107540.0,0.72975]
[1762192336554,0.41596845,107550.0,107540.0,0.40503]
[1762192337554,0.43849132,107550.0,107540.0,0.40503]
[1762192337862,0.40510122,107550.0,107540.0,0.40503]
[1762192338252,0.40510112,107550.0,107540.0,0.40503]
[1762192338458,0.72978112,107550.0,107540.0,0.40503]
[1762192339150,0.1527683,107540.0,107530.0,0.04496]
[1762192339356,0.29976846,107540.0,107530.0,0.4987769]
[1762192339556,0.29976846,107540.0,107530.0,0.1379769]
[1762192339861,0.29976846,107540.0,107530.0,0.4987769]
[1762192340363,0.02252287,107540.0,107530.0,0.7312569]
[1762192340654,0.06856287,107540.0,107530.0,0.4987769]
[1762192341055,0.28604846,107540.0,107530.0,0.4987769]
[1762192341360,0.39577676,107540.0,107530.0,0.4987769]
[1762192341559,0.39577676,107540.0,107530.0,0.40576]
[1762192341960,0.39377676,107540.0,107530.0,0.40576]
[1762192342262,0.1390656,107520.0,107510.0,0.4987942]
[1762192342461,0.1390656,107520.0,107510.0,0.40576]
[1762192342462,0.39279406,107520.0,107510.0,0.40576]
[1762192343164,0.29976846,107520.0,107510.0,0.4987942]
[1762192343364,0.37907406,107520.0,107510.0,0.4987942]
[1762192343560,0.39279406,107520.0,107510.0,0.40576]
[1762192343866,0.37027119,107520.0,107510.0,0.40576]
[1762192344060,0.60192559,107520.0,107510.0,0.4987942]
[1762192344259,0.58820559,107520.0,107510.0,0.4987942]
[1762192344460,0.59361865,107520.0,107510.0,0.4987942]
[1762192344658,0.60733865,107520.0,107510.0,0.40576]
[1762192344959,0.6294974,107520.0,107510.0,0.4997942]
[1762192345163,0.41160532,107520.0,107510.0,0.4997942]
[1762192345460,0.28765865,107520.0,107510.0,0.04596]
[1762192345659,0.80049958,107520.0,107510.0,0.04596]
[1762192345854,0.43969958,107520.0,107510.0,0.04596]
[1762192347056,0.34667398,107520.0,107510.0,0.4997945]
[1762192347257,0.15704093,107520.0,107510.0,0.4997945]
[1762192347458,0.02716788,107520.0,107510.0,0.4997945]
[1762192347663,0.005,107520.0,107510.0,0.4997945]
[1762192348264,0.02719878,107520.0,107510.0,0.4997945]
[1762192348765,0.07113878,107520.0,107510.0,0.4997945]
[1762192348965,0.04895878,107520.0,107510.0,0.4997945]
[1762192349362,0.14198468,107520.0,107510.0,0.4997945]
[1762192349563,0.27185773,107520.0,107510.0,0.40676]
[1762192349767,0.30776773,107520.0,107510.0,0.37064]
[1762192350969,0.30776773,107520.0,107510.0,0.73144]
[1762192351263,0.21474183,107520.0,107510.0,0.40676]
[1762192351466,0.02719878,107520.0,107510.0,0.4997945]
[1762192351764,0.54756255,107540.0,107530.0,0.04298]
[1762192351971,0.62745236,107540.0,107530.0,0.40378]
[1762192352563,0.62745236,107540.0,107520.0,0.3608]
[1762192352564,0.1369572,107530.0,107520.0,0.3608]
[1762192352759,0.1369572,107530.0,107510.0,0.72942]
[1762192352760,0.1536959,107520.0,107510.0,0.72942]
[1762192352965,0.28356895,107520.0,107510.0,0.72942]
[1762192353166,0.413442,107520.0,107510.0,0.02224]
[1762192353767,0.413442,107520.0,107510.0,0.04398]
[1762192353968,0.28356895,107520.0,107510.0,0.04398]
[1762192354375,0.28056895,107520.0,107510.0,0.04298]
[1762192354968,0.28256895,107520.0,107510.0,0.04398]
[1762192355176,0.60720895,107520.0,107510.0,0.04398]
[1762192355572,0.60720895,107520.0,107510.0,0.04298]
[1762192355776,0.739082,107520.0,107510.0,0.001]
[1762192355974,0.04394,107490.0,107480.0,0.54609765]
[1762192356167,0.17381305,107490.0,107480.0,0.4968404]
[1762192357577,0.17481305,107490.0,107480.0,0.4998404]
[1762192357778,0.04494,107490.0,107480.0,0.4998404]
[1762192358878,0.001,107490.0,107480.0,0.4998404]
[1762192359076,0.001,107490.0,107480.0,0.54909765]
[1762192359279,0.001,107490.0,107480.0,0.9115707]
[1762192359573,0.51218305,107520.0,107510.0,0.04298]
[1762192359778,0.51218305,107520.0,107510.0,0.40378]
[1762192360079,0.18754305,107520.0,107510.0,0.40378]
[1762192360274,0.18754305,107520.0,107510.0,0.04298]
[1762192360676,0.18754305,107520.0,107510.0,0.04398]
[1762192360677,0.55134305,107520.0,107510.0,0.04398]
[1762192360881,0.70618916,107520.0,107510.0,0.001]
[1762192362174,0.05767,107500.0,107490.0,0.3608]
[1762192362377,0.18754305,107500.0,107490.0,0.3608]
[1762192362570,0.04394,107490.0,107480.0,0.72842]
[1762192362776,0.17381305,107490.0,107480.0,0.72842]
[1762192363182,0.17381305,107490.0,107480.0,0.8214805]
[1762192363775,0.17381305,107490.0,107480.0,0.72842]
[1762192364080,0.17381305,107490.0,107480.0,0.4968405]
[1762192365082,0.26986485,107490.0,107480.0,0.4978405]
[1762192365978,0.26986485,107490.0,107480.0,0.40478]
[1762192366685,0.26986485,107490.0,107480.0,0.4978405]
[1762192367276,0.17681305,107490.0,107480.0,0.4978405]
[1762192367878,0.26986485,107490.0,107480.0,0.4978405]
[1762192368079,0.26986485,107490.0,107480.0,0.40478]
[1762192369887,0.28282485,107490.0,107480.0,0.4978405]
[1762192370097,0.28282485,107490.0,107480.0,0.3618]
[1762192370382,1.0981779,107490.0,107470.0,0.04925725]
[1762192370587,0.1500992,107470.0,107460.0,0.45664802]
[1762192370787,0.27997225,107470.0,107460.0,0.45664802]
[1762192371091,0.60465215,107470.0,107460.0,0.41312802]
[1762192371384,0.60465215,107470.0,107460.0,0.36387077]
[1762192371782,0.60465215,107470.0,107460.0,0.38806077]
[1762192371982,0.60565215,107470.0,107460.0,0.38806077]
[1762192372496,0.60565215,107470.0,107460.0,0.40939077]
[1762192372697,0.60565215,107470.0,107460.0,0.36587077]
[1762192373095,0.60565215,107470.0,107460.0,0.00507077]
[1762192373792,0.96645215,107470.0,107460.0,0.00507077]
[1762192373987,0.96645215,107470.0,107460.0,0.00307077]
[1762192373988,0.96545215,107470.0,107460.0,0.00307077]
[1762192374190,0.60565215,107470.0,107460.0,0.00407077]
[1762192374592,0.96645215,107470.0,107460.0,0.00407077]
[1762192374794,0.60565215,107470.0,107460.0,0.00407077]
[1762192375801,0.51258305,107470.0,107460.0,0.50146857]
[1762192376301,0.60565215,107470.0,107460.0,0.50146857]
[1762192376489,0.60565215,107470.0,107460.0,0.40839077]
[1762192376694,0.60565215,107470.0,107460.0,0.36487077]
[1762192376897,0.96645215,107470.0,107460.0,0.00407077]
[1762192378002,0.60565215,107470.0,107460.0,0.38706077]
[1762192378602,0.51258305,107470.0,107460.0,0.50146857]
[1762192378999,0.60565225,107470.0,107460.0,0.40839077]
[1762192379396,0.60565225,107470.0,107460.0,0.02626077]
[1762192379597,0.04407,107460.0,107450.0,0.04933678]
[1762192379798,0.18690305,107460.0,107450.0,7.953e-05]
[1762192380597,0.18690305,107460.0,107450.0,0.49748603]
[1762192381702,0.18690305,107460.0,107450.0,0.54674328]
[1762192383102,0.18690305,107460.0,107450.0,0.87146328]
[1762192383408,0.18790305,107460.0,107450.0,0.87346328]
[1762192383906,0.18790305,107460.0,107450.0,0.82420603]
[1762192384901,0.18790305,107460.0,107450.0,0.83328603]
[1762192385208,0.001,107460.0,107450.0,0.83328603]
[1762192385403,0.001,107460.0,107450.0,1.26153681]
[1762192385605,0.001,107460.0,107450.0,1.13166376]
[1762192386202,0.14283305,107480.0,107450.0,1.13166376]
[1762192386404,0.18690305,107480.0,107470.0,0.90769646]
[1762192386603,0.18690305,107480.0,107470.0,1.23241646]
[1762192387106,0.27996355,107480.0,107470.0,1.23241646]
[1762192387409,0.18690305,107480.0,107470.0,1.23241646]
[1762192387598,0.18690305,107480.0,107470.0,0.90769646]
[1762192387803,0.27996355,107480.0,107470.0,0.90769646]
[1762192388003,0.0356,107480.0,107470.0,0.91414646]
[1762192388204,0.18690305,107490.0,107480.0,0.04352]
[1762192388511,0.27995485,107490.0,107480.0,0.4973805]
[1762192388907,0.27995485,107490.0,107480.0,0.40432]
[1762192389113,0.1500905,107480.0,107470.0,0.001]
[1762192389407,0.1500991,107470.0,107460.0,0.04950736]
[1762192389612,0.1500991,107470.0,107450.0,0.41042628]
[1762192389613,0.1501078,107460.0,107450.0,0.41042628]
[1762192389806,0.60466085,107460.0,107450.0,7.953e-05]
[1762192390009,0.96546085,107460.0,107450.0,7.953e-05]
[1762192390507,0.05703,107440.0,107430.0,0.56316113]
[1762192390708,0.18690305,107440.0,107430.0,0.56316153]
[1762192391216,0.18690305,107450.0,107440.0,0.1366151]
[1762192391412,0.18690305,107450.0,107440.0,0.4974151]
[1762192391914,0.51165811,107460.0,107450.0,0.1366065]
[1762192392113,0.51165811,107460.0,107450.0,0.4974065]
[1762192392616,0.18697811,107460.0,107450.0,0.4974065]
[1762192393309,0.28005591,107460.0,107450.0,0.40432]
[1762192393909,0.28005591,107460.0,107450.0,0.4974065]
[1762192394117,0.28005591,107460.0,107450.0,0.40432]
[1762192394417,0.18697811,107460.0,107450.0,0.4974065]
[1762192394618,0.18797811,107460.0,107450.0,0.4994065]
[1762192396818,0.28105591,107460.0,107450.0,0.40632]
[1762192397014,0.28105591,107460.0,107450.0,0.4994065]
[1762192397220,0.28105591,107460.0,107450.0,0.40632]
[1762192398312,0.64185591,107460.0,107450.0,0.002]
[1762192398508,0.05829,107440.0,107430.0,0.47213773]
[1762192398719,0.4111312,107440.0,107430.0,0.47213773]
[1762192399217,0.3180361,107440.0,107430.0,0.56524153]
[1762192399619,0.18816305,107440.0,107430.0,0.56524153]
[1762192401106,0.18916305,107440.0,107430.0,0.56724153]
[1762192402515,0.05929,107440.0,107430.0,0.56724153]
[1762192402819,0.18916305,107440.0,107430.0,0.56724153]
[1762192403219,0.28225815,107440.0,107430.0,0.47413773]
[1762192404418,0.37042714,107440.0,107430.0,0.56724153]
[1762192405417,0.27733204,107440.0,107430.0,0.56724153]
[1762192406816,0.37042714,107440.0,107430.0,0.47413773]
[1762192407323,0.37042714,107440.0,107430.0,0.56724153]
[1762192408624,0.27733204,107440.0,107430.0,0.56724153]
[1762192409728,0.69510724,107440.0,107430.0,0.47413773]
[1762192410329,0.69520331,107440.0,107430.0,0.06773773]
[1762192410922,0.69520331,107440.0,107430.0,0.44982773]
[1762192411123,0.69520331,107440.0,107430.0,0.54293153]
[1762192411320,0.69520331,107440.0,107430.0,0.06773773]
[1762192411524,1.05600331,107440.0,107430.0,0.06773773]
[1762192411726,1.05900331,107440.0,107430.0,0.06573773]
[1762192412420,0.1532038,107430.0,107420.0,0.56650144]
[1762192412622,0.37124584,107430.0,107420.0,0.56650144]
[1762192412824,0.27814204,107430.0,107420.0,0.56650144]
[1762192413223,0.60282204,107430.0,107420.0,0.56650144]
[1762192413428,0.27814204,107430.0,107420.0,0.56650144]
[1762192413737,0.69904321,107440.0,107430.0,0.04378]
[1762192413926,0.69704321,107440.0,107430.0,0.47071938]
[1762192414120,0.60394811,107440.0,107430.0,0.56382318]
[1762192414329,0.38590607,107440.0,107430.0,0.56382318]
[1762192414529,0.60194811,107440.0,107430.0,0.56382318]
[1762192414830,0.60194811,107440.0,107430.0,0.4976838]
[1762192415328,0.60394811,107440.0,107430.0,0.4976838]
[1762192416635,0.27930811,107440.0,107430.0,0.4976838]
[1762192416931,0.06219607,107440.0,107430.0,0.8223238]
[1762192417128,0.00209607,107440.0,107430.0,1.0604538]
[1762192417335,0.00209607,107440.0,107430.0,1.11963126]
[1762192418536,0.05935,107460.0,107450.0,0.04378]
[1762192418745,0.08172825,107460.0,107450.0,0.8223065]
[1762192419038,0.02315,107460.0,107450.0,1.1921865]
[1762192419239,0.1531778,107460.0,107450.0,1.1921865]
[1762192419438,0.1394678,107460.0,107450.0,1.1921865]
[1762192419627,0.37121984,107460.0,107450.0,0.8584665]
[1762192419832,0.37121984,107460.0,107450.0,1.1831065]
[1762192420240,0.37121984,107460.0,107450.0,1.23273858]
[1762192420840,0.37321984,107460.0,107450.0,1.23973858]
[1762192421138,0.27814204,107460.0,107450.0,1.24181858]
[1762192421438,0.22104204,107460.0,107450.0,1.24281858]
[1762192422141,0.28114204,107460.0,107450.0,1.24281858]
[1762192422334,0.37421994,107460.0,107450.0,1.24281858]
[1762192422537,0.37421994,107460.0,107450.0,1.23373858]
[1762192423137,0.37421994,107460.0,107450.0,0.90909868]
[1762192423442,0.37421994,107460.0,107450.0,0.76638]
[1762192423739,0.37421994,107460.0,107450.0,0.09441208]
[1762192423939,0.3966039,107460.0,107450.0,0.001]
[1762192424640,0.7212039,107460.0,107450.0,0.02229]
[1762192425329,0.41008396,107460.0,107450.0,0.4987866]
[1762192425535,0.69881984,107460.0,107450.0,0.4987866]
[1762192425829,0.69881984,107460.0,107450.0,0.4057]
[1762192426035,0.69881984,107460.0,107450.0,0.4987865]
[1762192426544,0.60574204,107460.0,107450.0,0.4987865]
[1762192427039,0.003,107460.0,107450.0,0.5078665]
[1762192427432,0.003,107460.0,107450.0,0.55749858]
[1762192427637,0.04814,107460.0,107450.0,0.55749858]
[1762192427832,0.06158,107460.0,107450.0,0.54841858]
[1762192428737,0.02558,107460.0,107450.0,0.55749858]
[1762192430746,0.003,107460.0,107450.0,0.55749858]
[1762192431337,0.003,107460.0,107450.0,0.79013858]
[1762192433549,0.1519109,107480.0,107470.0,0.04502]
[1762192433736,0.08126309,107480.0,107470.0,1.1842092]
[1762192434051,0.05885,107480.0,107470.0,1.1842092]
[1762192434241,0.32481024,107490.0,107480.0,0.1380805]
[1762192434242,0.04514,107490.0,107480.0,0.1380805]
[1762192434440,0.36966524,107500.0,107490.0,0.1380719]
[1762192434637,0.39207345,107500.0,107490.0,0.8233919]
[1762192435142,0.29903025,107500.0,107490.0,0.8233919]
[1762192435350,0.02240821,107500.0,107490.0,1.07457606]
[1762192435537,0.27662204,107520.0,107510.0,0.1380546]
[1762192435840,0.29901905,107520.0,107510.0,0.8233746]
[1762192436345,0.39204495,107520.0,107510.0,0.8233746]
[1762192436548,0.39204495,107520.0,107510.0,0.73034]
[1762192437447,0.1381745,107510.0,107500.0,0.40582]
[1762192437638,0.35621654,107510.0,107500.0,0.7303]
[1762192437839,0.35621654,107510.0,107500.0,0.8233432]
[1762192438345,0.26318204,107510.0,107500.0,0.4988632]
[1762192438547,0.35621654,107510.0,107500.0,0.4988632]
[1762192438750,0.36121654,107510.0,107500.0,0.8243032]
[1762192439448,0.36121654,107510.0,107500.0,0.73126]
[1762192439952,0.73545654,107510.0,107500.0,0.001]
[1762192440141,0.37465654,107510.0,107500.0,0.001]
[1762192440343,0.73545654,107510.0,107500.0,0.001]
[1762192440546,0.75779744,107510.0,107500.0,0.001]
[1762192440943,0.1381918,107490.0,107480.0,0.39682]
[1762192441150,0.26318204,107490.0,107480.0,0.1380805]
[1762192441340,0.4174479,107500.0,107490.0,0.02241]
[1762192441649,0.58758204,107500.0,107490.0,0.1380718]
[1762192442044,0.36954,107500.0,107490.0,0.4988718]
[1762192442350,0.36954,107500.0,107490.0,0.8232718]
[1762192443147,0.4625832,107500.0,107490.0,0.8232718]
[1762192443449,0.36954,107500.0,107490.0,0.8232718]
[1762192444245,0.37354,107500.0,107490.0,0.8242718]
[1762192444444,0.68462524,107500.0,107490.0,0.73122]
[1762192444650,0.68462524,107500.0,107490.0,0.37042]
[1762192444948,0.69806524,107500.0,107490.0,0.37042]
[1762192445152,1.05886524,107500.0,107490.0,0.001]
[1762192446236,0.1382005,107480.0,107470.0,0.3608]
[1762192446441,0.35624254,107480.0,107470.0,0.70757]
[1762192446643,0.35624254,107480.0,107470.0,0.38321]
[1762192447451,0.68460254,107480.0,107470.0,0.001]
[1762192447653,1.04540254,107480.0,107470.0,0.001]
[1762192447951,0.05858,107460.0,107450.0,0.8232638]
[1762192448148,0.27662204,107460.0,107450.0,0.4989038]
[1762192448957,0.27662204,107460.0,107450.0,0.54853588]
[1762192449853,0.04514,107450.0,107440.0,0.45545208]
[1762192450150,0.26318204,107450.0,107440.0,0.54854718]
[1762192450451,0.26318204,107450.0,107440.0,0.04963208]
[1762192450655,0.26318204,107450.0,107440.0,0.50352718]
[1762192451047,0.26318204,107450.0,107440.0,0.52593718]
[1762192451254,0.26418204,107450.0,107440.0,0.38421]
[1762192451650,0.26418204,107450.0,107440.0,0.02341]
[1762192452048,0.62498204,107450.0,107440.0,0.02341]
[1762192452250,0.04514,107430.0,107420.0,0.00307191]
[1762192452453,0.94834204,107430.0,107420.0,0.00307191]
[1762192452756,0.03602,107400.0,107390.0,0.45555562]
[1762192452956,0.23148204,107420.0,107410.0,0.02261]
[1762192453147,0.04514,107430.0,107420.0,0.04502]
[1762192453351,0.36954,107430.0,107420.0,0.4989325]
[1762192453846,0.04514,107430.0,107420.0,0.4989325]
[1762192454057,0.02358,107430.0,107420.0,0.4999325]
[1762192454447,0.04614,107430.0,107420.0,0.4999325]
[1762192454646,0.05777,107420.0,107410.0,0.77955208]
[1762192454855,0.05777,107420.0,107410.0,0.72992]
[1762192455048,0.1508825,107420.0,107410.0,0.8230412]
[1762192455248,0.05777,107420.0,107410.0,0.4986412]
[1762192455456,0.05777,107420.0,107410.0,0.40552]
[1762192455760,0.36892454,107420.0,107410.0,0.04472]
[1762192456459,0.37392454,107420.0,107410.0,0.04572]
[1762192457347,0.69832454,107420.0,107410.0,0.04572]
[1762192458952,0.1558825,107420.0,107410.0,0.04572]
[1762192459158,0.06277,107420.0,107410.0,0.4996409]
[1762192459353,0.37392424,107420.0,107410.0,0.40652]
[1762192460252,0.73472424,107420.0,107410.0,0.04572]
[1762192460560,0.37392424,107420.0,107410.0,0.40652]
[1762192460856,0.38338306,107420.0,107410.0,0.40652]
[1762192461058,0.37392424,107420.0,107410.0,0.40652]
[1762192462054,0.1558822,107420.0,107410.0,0.04572]
[1762192462256,0.69836424,107420.0,107410.0,0.04572]
[1762192462765,0.1508996,107400.0,107390.0,0.00010354]
[1762192462965,1.05418164,107400.0,107390.0,0.00010354]
[1762192463167,0.69338164,107400.0,107390.0,0.00010354]
[1762192463356,0.69338164,107400.0,107390.0,0.02201354]
[1762192463557,0.69338164,107400.0,107390.0,0.04482354]
[1762192463955,0.27581204,107400.0,107390.0,0.13796184]
[1762192464258,0.69438164,107400.0,107390.0,0.49976184]
[1762192464459,0.05877,107400.0,107390.0,0.49976184]
[1762192464662,0.05877,107400.0,107390.0,0.82420184]
[1762192464856,0.05877,107400.0,107390.0,0.73106354]
[1762192464857,0.1518996,107400.0,107390.0,0.73106354]
[1762192465059,0.1518996,107400.0,107390.0,0.82420184]
[1762192465255,0.1518996,107400.0,107390.0,0.73106354]
[1762192465664,0.1518996,107400.0,107390.0,0.82420174]
[1762192466267,0.1518996,107400.0,107390.0,0.73106354]
[1762192466456,0.2820414,107400.0,107390.0,0.82420174]
[1762192467060,0.2820414,107400.0,107390.0,0.73106354]
[1762192467261,0.2820414,107400.0,107390.0,0.82420174]
[1762192469066,0.1889118,107400.0,107390.0,0.82420174]
[1762192469268,0.05877,107400.0,107390.0,0.82420174]
[1762192469669,0.1388395,107400.0,107390.0,0.82420174]
[1762192469871,0.1516095,107400.0,107390.0,0.82420174]
[1762192470466,0.001,107400.0,107390.0,0.83107174]
[1762192470662,0.03595,107420.0,107410.0,0.1152109]
[1762192470869,0.03595,107420.0,107410.0,0.8227609]
[1762192470870,0.1290622,107420.0,107410.0,0.8227609]
[1762192471068,0.03595,107420.0,107410.0,1.19283583]
[1762192471269,0.1512722,107420.0,107410.0,1.19283583]
[1762192471669,0.1512722,107420.0,107410.0,1.1835609]
[1762192471972,0.286414,107420.0,107410.0,1.09144]
[1762192472566,0.286414,107420.0,107410.0,0.73064]
[1762192473573,0.286414,107420.0,107410.0,0.8237608]
[1762192474593,0.286414,107420.0,107410.0,0.73064]
[1762192475876,0.286414,107420.0,107410.0,0.8237609]